Cogmind - Beta 14 @@@ ROGUE MODE // 2025.03.23 @ 21:10:38 Player: nitr0gen Result: Destroyed by exploding Fusion Modulator Performance ------------- Evolutions (1) 500 Regions Visited (2) 400 Robots Destroyed (26) 130 Value Destroyed (616) 616 Prototype IDs (2) 40 Alien Tech Used (0) 0 Bonus (0) 0 TOTAL SCORE: 1686 Bonus ------- None Cogmind --------- Core Integrity 0/400 Matter 300/300 Energy 98/100 System Corruption 0% Temperature Cool (12) Movement Core (600) Ox11 Location -9/Materials Parts ------- > --- POWER (2) -------- (None) > --- PROPULSION (2) --- (None) > --- UTILITY (3) ------ Large Storage Unit Improved Targeting Computer Field Recycling Unit > --- WEAPON (2) ------- Beam Rifle Maul > --- INVENTORY (15) --- Large Storage Unit Power Shielding EM Pulse Gun Spread Laser Assault Rifle Heavy Assault Rifle Maul Maul Maul Peak State ------------ > --- POWER ------------ Ion Engine Light Ion Engine > --- PROPULSION ------- Aluminum Leg Aluminum Leg > --- UTILITY ---------- Large Storage Unit Improved Targeting Computer Field Recycling Unit > --- WEAPON ----------- Beam Rifle Maul > --- INVENTORY -------- Ion Engine Large Storage Unit EM Pulse Gun Beam Rifle Spread Laser Assault Rifle Maul Maul Maul [Rating: 14] Favorites ----------- Power Ion Engine Engine Ion Engine Propulsion Aluminum Leg Leg Aluminum Leg Wheel Wheel Utility Improved Targeting Computer Device Field Recycling Unit Storage Large Storage Unit Processor Improved Targeting Computer Weapon Maul Energy Gun Beam Rifle Ballistic Gun Assault Rifle Impact Weapon Maul Build | -11 -10 -9 ------- Run | Yrd Mat Mat Slots Evolved 2 | . . 2 Power 1 | . . 1 Propulsion . | . . . Utility 1 | . . 1 Weapon . | . . . Parts Attached 24 | 6 10 8 Power 5 | 1 2 2 Engine 5 | 1 2 2 Core . | . . . Reactor . | . . . Propulsion 7 | 2 2 3 Treads . | . . . Leg 5 | . 2 3 Wheel 2 | 2 . . Hover . | . . . Flight . | . . . Utility 4 | 1 2 1 Device 1 | . . 1 Storage 2 | 1 1 . Processor 1 | . 1 . Hackware . | . . . Protection . | . . . Artifact . | . . . Weapon 8 | 2 4 2 Energy Gun 5 | 1 2 2 Energy Cannon . | . . . Ballistic Gun 1 | 1 . . Ballistic Cannon . | . . . Launcher . | . . . Special Weapon . | . . . Impact Weapon 2 | . 2 . Slashing Weapon . | . . . Piercing Weapon . | . . . Special Melee Weapon . | . . . Unidentified Prototypes . | . . . Parts Lost 7 | . 1 6 Power 3 | . 1 2 Propulsion 3 | . . 3 Utility . | . . . Weapon 1 | . . 1 Highest Loss Streak 4 | . 1 4 To Critical Strikes . | . . . Average Slot Usage (%) 87 | . 94 83 Engine 14 | . 8 18 Leg 16 | . 20 13 Wheel 2 | . 7 . Device 5 | . . 8 Storage 12 | . 14 11 Processor 12 | . 13 11 Energy Gun 11 | . 13 10 Impact Weapon 11 | . 12 11 Peak Build Rating 14 | 6 11 14 Average Rating 10 | 5 9 12 On Entrance 5 | . 6 11 Naked Turns . | . . . Heaviest Build 44 | 12 31 44 Greatest Support 26 | 26 26 20 Greatest Overweight (x) 12 | . 1 12 Average Overweight (x) 1 | . . 3 Largest Inventory Capacity 15 | 8 15 15 Average Capacity 13 | 7 14 15 Most Carried 11 | 5 8 11 Average Carried 5 | . 5 8 Final Capacity 15 | 8 15 15 Final Carried 9 | . 7 9 Class Distribution -------------------- 82% | Mutant 17% | Scavenger-Mutant Dominant Class ---------------- Mutant | -10/Materials Mutant | -9/Materials Resources | -11 -10 -9 ----------- Run | Yrd Mat Mat Matter Collected 400 | 171 189 40 Remotely . | . . . Salvage Created 823 | . 437 386 Parts 45 | . 30 15 Haulers Intercepted . | . . . Recyclers Shooed 1 | . 1 . Parts Field Recycled 6 | . . 6 Retrieved Matter 122 | . . 122 Parts Self-Destructed . | . . . Prevented . | . . . Kills | -11 -10 -9 ------- Run | Yrd Mat Mat Combat Hostiles Destroyed 16 | . 7 9 Melee 5 | . 4 1 Guns 7 | . 2 5 Classes Destroyed 9 | . 5 4 Worker 3 | . 3 . Builder 1 | . 1 . Tunneler 2 | . 2 . Recycler 1 | . . 1 Mechanic 1 | . . 1 Watcher 2 | . 2 . Swarmer 3 | . . 3 Grunt 11 | . 7 4 Sentry 2 | . . 2 Best Kill Streak 4 | . 4 4 Combat Bots Only 4 | . 2 4 Max Kills in Single Turn 1 | . 1 1 Gunslinging . | . . . Exploded . | . . . Melee 1 | . 1 1 Uniques/NPCs Destroyed . | . . . Combat | -11 -10 -9 -------- Run | Yrd Mat Mat Hostile Shots Fired 180 | . 48 132 Missed 47 | . 17 30 Damage Taken 1637 | . 385 1252 Core 554 | . 91 463 Absorbed by Shields . | . . . Regen/Repaired (Parts) 128 | . . 128 Core Remaining (%) 81 | 100 63 . Volleys Fired 70 | . 36 34 Largest 1 | . 1 1 Hottest 56 | . 56 56 Shots Fired 70 | . 36 34 Gun 70 | . 36 34 Cannon . | . . . Launcher . | . . . Special . | . . . Kinetic . | . . . Thermal 70 | . 36 34 Explosive . | . . . Electromagnetic . | . . . Robot Hit Streak 13 | . 8 13 Robot Miss Streak 3 | . 3 3 Penetration Max . | . . . Secondary Targets . | . . . Shots Hit Robots 69 | . 35 34 Core Hits 27 | . 15 12 Critical Kills 2 | . 2 . Critical Parts Destroyed 4 | . 3 1 Critical Strikes 12 | . 7 5 Burn 6 | . 2 4 Smash 6 | . 5 1 Melee Attacks 24 | . 12 12 Impact 24 | . 12 12 Slashing . | . . . Piercing . | . . . Sneak Attacks 4 | . 3 1 Combat Hostiles . | . . . Follow-up Attacks . | . . . Damage Inflicted 1622 | . 869 753 Guns 724 | . 348 376 Cannons . | . . . Explosions . | . . . Melee 898 | . 521 377 Ramming . | . . . Kinetic . | . . . Thermal 724 | . 348 376 Explosive . | . . . Electromagnetic . | . . . Impact 898 | . 521 377 Slashing . | . . . Piercing . | . . . Highest Corruption . | . . . Average Corruption . | . . . Corruption Purged . | . . . Corruption Blocked . | . . . Overload Shots . | . . . Overflow Damage 308 | . 167 141 Projectiles . | . . . Explosions . | . . . Melee 308 | . 167 141 Knockbacks 5 | . 3 2 Impact 5 | . 3 2 Kinetic . | . . . Secondary . | . . . Self-Inflicted Damage . | . . . Shots . | . . . Rammed . | . . . Targets Rammed . | . . . Kicked . | . . . Crushed . | . . . Highest Temperature 225 | . 168 225 Average Temperature 63 | . 45 77 Received Heat Transfer 654 | . 213 441 Siege Activations . | . . . Robots Corrupted 4 | . 1 3 Combat Hostiles 3 | . 1 2 Parts Fried 13 | . 7 6 Impact Corruptions 13 | . 7 6 Robots Melted 1 | . . 1 Combat Hostiles 1 | . . 1 Parts Melted 3 | . . 3 Heat Transferred 2294 | . 1036 1258 Parts Sabotaged . | . . . Parts Stolen . | . . . Parts Stripped . | . . . Power Chain Reactions . | . . . Alert | -11 -10 -9 ------- Run | Yrd Mat Mat Peak Influence 209 | . 209 92 Initial . | . . . Average 42 | . 79 40 Maximum Alert Level 1 | . 1 . Low Security (%) 96 | 100 89 100 Level 1 3 | . 10 . Level 2 . | . . . Level 3 . | . . . Level 4 . | . . . Level 5 . | . . . High Security . | . . . Max Security . | . . . Squads Dispatched 5 | . 3 2 Investigation 4 | . 2 2 Extermination . | . . . Reinforcement 1 | . 1 . Assault . | . . . Garrison . | . . . Intercept . | . . . Searches Triggered . | . . . Construction Impeded . | . . . Haulers Reinforced . | . . . Active Scanning Responses . | . . . Cargo Convoy Interrupts . | . . . Stealth | -11 -10 -9 --------- Run | Yrd Mat Mat Distress Signals 1 | . 1 . Communications Jammed . | . . . Distress Signals . | . . . Times Spotted 29 | . 14 15 Peak Tracking Total 4 | . 3 4 Tactical Retreats . | . . . Traps | -11 -10 -9 ------- Run | Yrd Mat Mat Traps Triggered . | . . . Indirectly . | . . . Trap Hack Attempts . | . . . Triggered . | . . . Disarmed . | . . . Reprogrammed . | . . . Reused . | . . . Traps Extracted . | . . . Installed . | . . . Triggered . | . . . Machines | -11 -10 -9 ---------- Run | Yrd Mat Mat Machines Disabled 1 | . 1 . Max in Single Turn 1 | . 1 . Machines Repaired . | . . . Machines Dismantled . | . . . Machines Sabotaged . | . . . Overloaded Fab Kills . | . . . Hacking | -11 -10 -9 --------- Run | Yrd Mat Mat Machines Accessed 8 | . 3 5 Terminals 6 | . 3 3 Fabricators . | . . . Repair Stations 1 | . . 1 Recycling Units . | . . . Scanalyzers 1 | . . 1 Garrison Access . | . . . Total Hacks 38 | . 13 25 Successful 26 | . 9 17 Failed 12 | . 4 8 Catastrophic 2 | . 1 1 Database Lockouts . | . . . Manual . | . . . Terminals 27 | . 13 14 Fabricators . | . . . Repair Stations 5 | . . 5 Recycling Units . | . . . Scanalyzers 6 | . . 6 Garrison Access . | . . . Terminal Hacks 17 | . 9 8 Record 14 | . 7 7 Prototype ID Bank 1 | . . 1 Maintenance Status 1 | . 1 . Zone Layout 1 | . 1 . Fabricator Hacks . | . . . Repair Station Hacks 4 | . . 4 Scan Component 2 | . . 2 Repair 2 | . . 2 Recycling Unit Hacks . | . . . Scanalyzer 5 | . . 5 Insert Component 3 | . . 3 Analyze 2 | . . 2 Garrison Access Hacks . | . . . Unauthorized Hacks . | . . . Terminals . | . . . Fabricators . | . . . Repair Stations . | . . . Recycling Units . | . . . Scanalyzers . | . . . Garrison Access . | . . . Data Cores Recovered . | . . . Used . | . . . Hacking Detections 7 | . 3 4 Full Trace Events 4 | . 2 2 Feedback Events . | . . . Feedback Blocked . | . . . Robot Schematics Acquired . | . . . Robots Built . | . . . Authchips . | . . . Time . | . . . Total Robot Build Rating . | . . . Part Schematics Acquired 2 | . . 2 Parts Built . | . . . Authchips . | . . . Time . | . . . Total Part Build Rating . | . . . Parts Repaired 2 | . . 2 Time 58 | . . 58 Parts Recycled . | . . . Recycled Matter . | . . . Retrieved Matter . | . . . Retrieved Components . | . . . Parts Scanalyzed 2 | . . 2 Part Schematics Acquired 2 | . . 2 Parts Damaged . | . . . Bothacking | -11 -10 -9 ------------ Run | Yrd Mat Mat Used RIF Installer . | . . . Robots Hacked . | . . . Non-combat . | . . . Combat . | . . . Robot Hacks Applied . | . . . Relay Couplers Released . | . . . Fabnet Peak Effective % . | . . . Robots Rewired . | . . . Allies Hacked . | . . . Hacks Repelled . | . . . Allies | -11 -10 -9 -------- Run | Yrd Mat Mat Total Allies . | . . . Largest Group . | . . . Highest-Rated Group . | . . . Highest-Rated Ally . | . . . Total Orders . | . . . Ally Attacks . | . . . Total Damage . | . . . Kills . | . . . Allies Corrupted . | . . . Allies Melted . | . . . Intel | -11 -10 -9 ------- Run | Yrd Mat Mat Robot Analysis Total . | . . . Derelict Logs Recovered . | . . . Drone Launches . | . . . Drone Recoveries . | . . . Exploration | -11 -10 -9 ------------- Run | Yrd Mat Mat Turns Passed 2832 | 652 824 1356 Spaces Moved 920 | 145 429 346 Core 69 | 27 . 42 Treads . | . . . Legs 601 | . 297 304 Wheels 250 | 118 132 . Hover . | . . . Flight . | . . . Fastest Speed 50 | 50 90 190 Average Speed 214 | 82 160 337 Slowest Speed 650 | 90 190 650 Overloaded Moves . | . . . Propulsion Burnouts . | . . . Robots Hopped . | . . . Cave-ins Triggered . | . . . Exploration Rate (%) 30 | 16 50 26 Regions Visited 2 Branch Regions . Pre-discovered Areas . | . . . Known Exits Taken . | . . . Unknown Exits Taken 2 | 1 1 . Scrap Searched . | . . . Spaces Dug . | . . . Terrain Destroyed . | . . . Melee . | . . . Projectile . | . . . AOE . | . . . Terrain Rammed . | . . . Walls Destroyed . | . . . Machines Disabled . | . . . Actions | -11 -10 -9 --------- Run | Yrd Mat Mat Total 1661 | 676 504 481 Wait 590 | 521 . 69 Move 918 | 144 428 346 Hop . | . . . Pick Up 28 | 5 13 10 Fast Attach 1 | 1 . . Attach 20 | 5 7 8 Detach 1 | . 1 . Swap 3 | . 3 . Drop 6 | . 4 2 Fire 70 | . 36 34 Melee 24 | . 12 12 Ram . | . . . Kick . | . . . Crush . | . . . Escape Stasis . | . . . Rewire . | . . . Trap . | . . . Miscellaneous . | . . . Route ------- -11/Scrapyard -10/Materials -9/Materials History --------- Turn | Location | Event 6 | -11/Scrapyard | Discovered new exit (range 16) 653 | -11/Scrapyard | Entered Materials 654 | -10/Materials | Build established: Mutant 1182 | -10/Materials | Discovered new exit (range 3) 1477 | -10/Materials | Entered another Materials area 1477 | -9/Materials | Evolved 2 slots: Power x1, Utility x1 1673 | -9/Materials | Repaired Beam Rifle 1700 | -9/Materials | Repaired Aluminum Leg 2361 | -9/Materials | Build established: Scavenger-Mutant 2566 | -9/Materials | Core integrity fell below 50% 2611 | -9/Materials | Lost 4 parts (1p2n1w) 2799 | -9/Materials | Core integrity fell below 20% 2833 | -9/Materials | Destroyed by exploding Fusion Modulator Last Messages --------------- effect. G-47 Trooper knocked back. G-47 Trooper system terminally corrupted. Particle Gun fried. Aluminum Leg fried. Lgt. Nuclear Core fried. C-30 ARC bursts open, deploying its payload. L-31 Rogue unfolds itself. G-34 Mercenary unfolds itself. K-01 Serf collects debris. Destroyed Heat Sink. G-34 Mercenary system corrupted by crushing effect. K-01 Serf collects debris. G-34 Mercenary IFF system glitched. K-01 Serf collects debris. Fusion Modulator explodes. G-34 Mercenary destroyed. L-31 Rogue destroyed. Fusion Modulator explodes. Map ----- +----------------------------------------------------+ | ??????????????????????????????????????????# """ # | | ??????????????????????????????????????????# # | | ??????????????????????????????????????????# "T" # | | ??????????????????????????????????????????######## | | ?????????????????????????????????????????????????# | | ?????????????????????????????????????????????????# | | ????????????????????????????????????????########## | | ????????????????????????????????????????# # | | ????????????????????????????????????????# """ # | | ?????????????###????????????????????????# """ # | | ????#????????# ###################??????# """ # | | ????# ??????# # !!! #??????# # | | ????? ????# # !!! #??????# [# | | ?????? """ ??# # !! #??????# ""[+ | | ????? """ # # #??????# S"" # | | ????? """ + #%""" """ #??????# "" # | | ??= + # ! %+ """ """ #??????########## | | == # ??# # """ """ #??????????????# | | ????# ""????# #% #??????????????# | | ??? ??" ###########+#########??????????????# | | ?????????" #################= | | ???????? k ! %* | | ???????? % ################## | | ?????????" ###;;;;!;#######?????????######## | | ?????????" ??# %% #???????????# # | | ?????????? ?????# @ #???????????#"" + | | ?????????????????# g #???????????#"T # | | ??????????????? %+ [ #???????????#"" # | | ?????????????# # r g #???????????# # | | ?????????????# ??##############???????????# # | | ??????????????????????????????????????### ######## | | ??????????????????????????????????????? # | | ????????????????????????????????????????? """ + | | ????????????????????????????????????????? """ # | | ??????????????????????????????????????????= """ # | | ??????????????????????????????????????????= """?# | | ?????????????????????????????????????????????""??# | | ????????????????????????????????????????????? ??# | | ?????????????????????????????????????????????????# | | ?????????????????????????????????????????????????# | | ?????????????????????????????????????????????????# | | ?????????????????????????????????????????????????# | | ?????????????????????????????????????????????????# | | ??????????????????????????????????????????????#### | | ??????????????????????????????????????????????# | | ??????????????????????????????????????????????# | | ??????????????????????????????????????????????# | | ??????????????????????????????????????????????# | | ??????????????????????????????????????????????# | | ??????????????????????????????????????????????# | +----------------------------------------------------+ Best States ------------- Heat Dissipation 28 Energy Generation 15 Energy Capacity 400 Matter Stores 300 Matter Capacity 300 Sight Range 16 Terrain Scan Density 10 Evasion (%) 50 Targeting Accuracy 6 Item Schematics ----------------- Assault Rifle | -9/Materials | Scanalyzed Beam Rifle | -9/Materials | Scanalyzed Robot Schematics ------------------ None Fabricated ------------ Nothing Alien Tech Used ----------------- None Achievements -------------- Power Corrupts Challenges ------------ None Game ------ Seed AntimissileMasterMatrix Manual? 0 Play Time 00:19:18 Cumulative 2.6 hours Start 2025.03.23 @ 20:50:15 End 2025.03.23 @ 21:10:38 Sessions 1 Manual Loads 0 Difficulty Rogue Special Mode None Game No. 8 Rogue 8 Adventurer 0 Explorer 0 Win Type - Total 0 Types 0/0/0/0/0/0/0/0/0 Lore% 6 Gallery% 7 Achievement% 8 Wizard Run 0 Options --------- Layout 1 ASCII 0 Keyboard 0 Movement Mouse Keybinds 0 Fullscreen 1 Font 32/SmallcapsGlow Map View 50x35 Zoom Use 0% Tactical HUD 0 Map Filters NONE Filters NONE Steam 1 RUN: b788f52e-fbee-46f2-970d-9b77f8656b3a